{"text_format":"1","workbook":"xlsx","n_sheets":2,"sheets":["Данные","Данные с таблицы"],"not_rendered":{"charts":0,"images":0,"macros":1,"external_links":0,"defined_names":0,"comments":1,"pivot_tables":0},"unopened":[],"bounds":{"document_bytes":16777216,"sheet_cells":100000,"rows_first":2000,"rows_last":500,"rows_between":2000,"halvings":0,"cell_chars":16384,"cell_head_chars":4096},"cells_cut":0,"cells_raw":0,"read":"whole","date_system":"1900"}

{"sheet":"Данные","index":0,"n_rows":62,"n_cols":3,"rows_kept":62,"cut":false,"hidden":false,"merged":[[4,1,4,2],[5,1,5,2],[8,2,10,2]]}
[null,"Продажи"]
[null,"Период: Апрель 2018 г."]
[null,"Показатели: Количество;"]
[null,"Группировки строк: рат_Маршрут_ОтделПродаж.Торговый представитель (Элементы); Контрагент (Элементы); ДокументПродажи.Рат объект доставки (Элементы);"]
[null,"Отборы:\nМаршрут отдел продаж.Торговый представитель В списке (Анциферова Любовь Алексан...; Козлова Виктория Юрьевна; Костенко Дмитрий Николаев...; Крайник Екатерина Евгенье...; Шокель Илья Игоревич);\nКонтрагент В группе Инкотек покупатели Владивосток (в другие папки НЕ переносить);\nНоменклатура В группе из списка (ДЕЛИКАТЕСЫ; ЗАМОРОЖЕННЫЕ ПОЛУФАБРИКАТ...; Замороженные фрукты/овощи; КОЛБАСНЫЕ ИЗДЕЛИЯ);"]
[null,"Дополнительные поля:\nБазовая единица измерения (Вместе с измерениями, После группировки);"]
[null,"Сортировка: Контрагент.Наименование (По возрастанию); Номенклатура.Наименование (По возрастанию);"]
[]
[null,"рат_Маршрут_ОтделПродаж.Торговый представитель","Количество"]
[null,"Контрагент"]
[null,"ДокументПродажи.Рат объект доставки"]
[]
[null,"Анциферова Любовь Александровна",59091.093999999997]
[null,"Авиатор ООО",5417.4719999999998]
[null,"Артем г,  Фрунзе ул,  32а",5417.4719999999998]
[null,"Александр ООО",4787.8029999999999]
[null,"Артем,  Рабочая 1-я ул,  70а",2006.288]
[null,"Артем,  Фрунзе,  56",2781.5149999999999]
[null,"Алексеенко Т.Ф. ИП",92.278000000000006]
[null,"Артем г,  Рабочая 1-я ул,  33а",92.278000000000006]
[null,"АЛКОПРИМ-трейдинг ООО",244.10400000000001]
[null,"Артем г,  Кирова ул,  19",244.10400000000001]
[null,"Альтернатива ООО",4924.1059999999998]
[null,"Артем г,  Кирова ул,  72",3911.482]
[null,"Артем г,  Херсонская ул,  38",1012.624]
[null,"Артем ООО",4874.1109999999999]
[null,"Артем,  Кирова,  148а",4874.1109999999999]
[null,"Баканов В.И. ИП",74.757999999999996]
[null,"Артем г,  Рабочая 1-я ул,  68",74.757999999999996]
[null,"Гранд ООО",3819.3150000000001]
[null,"Артем г,  Кирова ул,  68а",662.48299999999995]
[null,"Артем,  Ленина,  6  \"Центральный\"",3156.8319999999999]
[null,"Ден То Ден ООО",1288.758]
[null,"Артем,  Каширская ул,  28/1",1288.758]
[null,"Евгения ООО",3284.5390000000002]
[null,"Артем г,  Севастопольская ул,  12б",2028.3879999999999]
[null,"Артем,  Кирова,  79",1256.1510000000001]
[null,"Калашников А.Е. ИП",5.64]
[null,"Артем г,  Фрунзе ул,  48в",5.64]
[null,"Ковальчук Д. О. - Артем ИП",1213.817]
[null,"Артем г,  Полевая ул,  21а",1213.817]
[null,"Маслова Л.В. ИП",1571.9469999999999]
[null,"Артем г,  Пионерская ул,  13",1571.9469999999999]
[null,"Молькова Г.А. ИП",1101.7280000000001]
[null,"Артем г,  Кирова ул,  64а",1101.7280000000001]
[null,"Радиус ООО",4303.2790000000005]
[null,"Артем г,  Фрунзе ул,  48",4303.2790000000005]
[null,"Розничные технологии 25 ООО",2345.17]
[null,"Артем г,  Кирова ул,  9/1",2345.17]
[null,"Такт ООО",2269.7939999999999]
[null,"Артем,  Дзержинского,  1/2  м-н \"Русь\"",538.90499999999997]
[null,"Артем,  Ульяновская,  3",929.73299999999995]
[null,"Артем,  Херсонская,  3",801.15599999999995]
[null,"Три Кота ООО",5333.9960000000001]
[null,"Артем г,  Кирова ул,  191",5333.9960000000001]
[null,"Флагман ООО",9524.4249999999993]
[null,"Артем г,  Рабочая 1-я ул,  28а",8848.7459999999992]
[null,"Артем,  Симферопольская ул,  6",675.67899999999997]
[null,"Фреш Трейд ООО",2445.1039999999998]
[null,"Артем г,  Кирова ул,  11/1",2445.1039999999998]
[null,"Юрченко М.А. ИП",168.95]
[null,"Артем г,  Каширская ул,  28/1  магазаин № 94",168.95]

{"sheet":"Данные с таблицы","index":1,"n_rows":25,"n_cols":2,"rows_kept":25,"cut":false,"hidden":false,"merged":[]}
[]
["Анциферова Любовь Александровна",59091.093999999997]
[{"$f":"BoldFill(Данные!$B$14:$B$62,ROW()-2)","v":"Авиатор ООО"},5417.4719999999998]
[{"$f":"BoldFill(Данные!$B$14:$B$62,ROW()-2)","v":"Александр ООО"},4787.8029999999999]
[{"$f":"BoldFill(Данные!$B$14:$B$62,ROW()-2)","v":"Алексеенко Т.Ф. ИП"},92.278000000000006]
[{"$f":"BoldFill(Данные!$B$14:$B$62,ROW()-2)","v":"АЛКОПРИМ-трейдинг ООО"},244.10400000000001]
[{"$f":"BoldFill(Данные!$B$14:$B$62,ROW()-2)","v":"Альтернатива ООО"},4924.1059999999998]
[{"$f":"BoldFill(Данные!$B$14:$B$62,ROW()-2)","v":"Артем ООО"},4874.1109999999999]
[{"$f":"BoldFill(Данные!$B$14:$B$62,ROW()-2)","v":"Баканов В.И. ИП"},74.757999999999996]
[{"$f":"BoldFill(Данные!$B$14:$B$62,ROW()-2)","v":"Гранд ООО"},3819.3150000000001]
[{"$f":"BoldFill(Данные!$B$14:$B$62,ROW()-2)","v":"Ден То Ден ООО"},1288.758]
[{"$f":"BoldFill(Данные!$B$14:$B$62,ROW()-2)","v":"Евгения ООО"},3284.5390000000002]
[{"$f":"BoldFill(Данные!$B$14:$B$62,ROW()-2)","v":"Калашников А.Е. ИП"},5.64]
[{"$f":"BoldFill(Данные!$B$14:$B$62,ROW()-2)","v":"Ковальчук Д. О. - Артем ИП"},1213.817]
[{"$f":"BoldFill(Данные!$B$14:$B$62,ROW()-2)","v":"Маслова Л.В. ИП"},1571.9469999999999]
[{"$f":"BoldFill(Данные!$B$14:$B$62,ROW()-2)","v":"Молькова Г.А. ИП"},1101.7280000000001]
[{"$f":"BoldFill(Данные!$B$14:$B$62,ROW()-2)","v":"Радиус ООО"},4303.2790000000005]
[{"$f":"BoldFill(Данные!$B$14:$B$62,ROW()-2)","v":"Розничные технологии 25 ООО"},2345.17]
[{"$f":"BoldFill(Данные!$B$14:$B$62,ROW()-2)","v":"Такт ООО"},2269.7939999999999]
[{"$f":"BoldFill(Данные!$B$14:$B$62,ROW()-2)","v":"Три Кота ООО"},5333.9960000000001]
[{"$f":"BoldFill(Данные!$B$14:$B$62,ROW()-2)","v":"Флагман ООО"},9524.4249999999993]
[{"$f":"BoldFill(Данные!$B$14:$B$62,ROW()-2)","v":"Фреш Трейд ООО"},2445.1039999999998]
[{"$f":"BoldFill(Данные!$B$14:$B$62,ROW()-2)","v":"Юрченко М.А. ИП"},168.95]
[{"$f":"BoldFill(Данные!$B$14:$B$62,ROW()-2)","v":""}]
[{"$f":"BoldFill(Данные!$B$14:$B$62,ROW()-2)","v":""}]